fUSD/lending_fUSD_20250120
["ID","MTS","AMOUNT","RATE_DAILY","PERIOD"]
[349760177,1737415838753,-1026.7,0.00019178,2]
[349760180,1737415838762,-2144.58,0.00019178,2]
[349760182,1737415838772,-946.02,0.00019178,2]
[349760183,1737415838781,-1378.59,0.00019178,2]
[349760185,1737415838791,-677.88,0.00019178,2]
[349760187,1737415838800,-500.0,0.00019178,2]
[349760189,1737415838810,-1376.13,0.00019178,2]
[349760191,1737415838819,-945.16,0.00019178,2]
[349760193,1737415838828,-500.0,0.00019178,2]
[349760195,1737415838838,-2515.77,0.00019178,2]
[349760197,1737415838852,-1223.49,0.00019178,2]
[349760200,1737415838861,-500.0,0.00019178,2]
[349760201,1737415838870,-969.34,0.00019178,2]
[349760203,1737415838880,-500.0,0.00019178,2]
[349760205,1737415838889,-1962.3,0.00019178,2]
[349760207,1737415838899,-500.0,0.00019178,2]
[349760209,1737415838908,-1107.14,0.00019178,2]
[349760211,1737415838918,-529.21,0.00019178,2]
[349760213,1737415838927,-1157.96,0.00019178,2]
[349760215,1737415838936,-500.0,0.00019178,2]
[349760217,1737415838946,-1554.81,0.00019178,2]
[349760219,1737415838955,-500.0,0.00019178,2]
[349760221,1737415838965,-500.0,0.00019178,2]
[349760223,1737415838974,-500.0,0.00019178,2]
[349760225,1737415838983,-500.0,0.00019178,2]
[349760227,1737415838992,-3252.33,0.00019178,2]
[349760229,1737415839001,-500.0,0.00019178,2]
[349760231,1737415839011,-500.0,0.00019178,2]
[349760233,1737415839020,-500.0,0.00019178,2]
[349760235,1737415839029,-500.0,0.00019178,2]
[349760237,1737415839038,-500.0,0.00019178,2]
[349760239,1737415839047,-500.0,0.00019178,2]
[349760241,1737415839056,-500.0,0.00019178,2]
[349760243,1737415839065,-500.0,0.00019178,2]
[349760245,1737415839075,-798.24,0.00019178,2]
[349760247,1737415839084,-773.38,0.00019178,2]
[349760249,1737415839093,-500.0,0.00019178,2]
[349760251,1737415839102,-500.0,0.00019178,2]
[349760253,1737415839112,-461.54010866,0.00019178,2]
[349760255,1737415839121,-500.0,0.00019178,2]
[349760257,1737415839130,-500.0,0.00019178,2]
[349760259,1737415839139,-500.0,0.00019178,2]
[349760261,1737415839148,-727.57,0.00019178,2]
[349760263,1737415839157,-500.0,0.00019178,2]
[349760265,1737415839166,-20876.886,0.00019252,2]
[349760267,1737415839175,-250.0,0.00019297,2]
[349760269,1737415839184,-1000.0,0.00019304,2]
[349760271,1737415839193,-171.77,0.00019375,2]
[349760273,1737415839203,-272.46714465,0.00019417,2]
[349760275,1737415839212,-500.0,0.00019452,2]
[349760277,1737415839221,-500.0,0.00019452,2]
[349760279,1737415839231,-500.0,0.00019452,2]
[349760281,1737415839240,-500.0,0.00019452,2]
[349760283,1737415839249,-500.0,0.00019452,2]
[349760284,1737415839258,-500.0,0.00019452,2]
[349760286,1737415839267,-500.0,0.00019452,2]
[349760288,1737415839276,-500.0,0.00019452,2]
[349760290,1737415839285,-500.0,0.00019452,2]
[349760292,1737415839294,-500.0,0.00019452,2]
[349760294,1737415839302,-500.0,0.00019452,2]
[349760296,1737415839312,-500.0,0.00019452,2]
[349760298,1737415839322,-500.0,0.00019452,2]
[349760300,1737415839331,-500.0,0.00019452,2]
[349760302,1737415839340,-500.0,0.00019452,2]
[349760305,1737415839351,-500.0,0.00019452,2]
[349760306,1737415839360,-500.0,0.00019452,2]
[349760308,1737415839369,-500.0,0.00019452,2]
[349760310,1737415839378,-500.0,0.00019452,2]
[349760312,1737415839387,-500.0,0.00019452,2]
[349760314,1737415839396,-500.0,0.00019452,2]
[349760316,1737415839405,-500.0,0.00019452,2]
[349760318,1737415839414,-576.78,0.00019452,2]
[349760320,1737415839423,-500.0,0.00019452,2]
[349760322,1737415839433,-500.0,0.00019452,2]
[349760324,1737415839441,-500.0,0.00019452,2]
[349760326,1737415839451,-500.0,0.00019452,2]
[349760328,1737415839460,-500.0,0.00019452,2]
[349760330,1737415839469,-500.0,0.00019452,2]
[349760332,1737415839478,-500.0,0.00019452,2]
[349760334,1737415839487,-500.0,0.00019452,2]
[349760336,1737415839496,-500.0,0.00019452,2]
[349760338,1737415839505,-500.0,0.00019452,2]
[349760340,1737415839515,-500.0,0.00019452,2]
[349760342,1737415839524,-500.0,0.00019452,2]
[349760344,1737415839533,-500.0,0.00019452,2]
[349760346,1737415839542,-500.0,0.00019452,2]
[349760348,1737415839551,-1740.72,0.00019452,2]
[349760350,1737415839561,-1026.7,0.00019452,2]
[349760352,1737415839570,-2144.58,0.00019452,2]
[349760354,1737415839580,-946.02,0.00019452,2]
[349760356,1737415839590,-1378.59,0.00019452,2]
[349760358,1737415839600,-677.88,0.00019452,2]
[349760360,1737415839609,-500.0,0.00019452,2]
[349760362,1737415839618,-1376.13,0.00019452,2]
[349760364,1737415839628,-945.16,0.00019452,2]
[349760366,1737415839637,-500.0,0.00019452,2]
[349760368,1737415839646,-2515.77,0.00019452,2]
[349760370,1737415839655,-1223.49,0.00019452,2]
[349760372,1737415839664,-500.0,0.00019452,2]
[349760374,1737415839673,-969.34,0.00019452,2]
[349760376,1737415839682,-500.0,0.00019452,2]
[349760378,1737415839692,-1962.3,0.00019452,2]
[349760379,1737415839701,-500.0,0.00019452,2]
[349760381,1737415839711,-1107.14,0.00019452,2]
[349760383,1737415839720,-529.21,0.00019452,2]
[349760385,1737415839729,-1157.96,0.00019452,2]
[349760387,1737415839739,-500.0,0.00019452,2]
[349760390,1737415839748,-1554.81,0.00019452,2]
[349760393,1737415839758,-500.0,0.00019452,2]
[349760396,1737415839768,-500.0,0.00019452,2]
[349760398,1737415839777,-500.0,0.00019452,2]
[349760399,1737415839787,-500.0,0.00019452,2]
[349760401,1737415839796,-3252.33,0.00019452,2]
[349760403,1737415839806,-500.0,0.00019452,2]
[349760405,1737415839815,-500.0,0.00019452,2]
[349760407,1737415839824,-500.0,0.00019452,2]
[349760409,1737415839834,-500.0,0.00019452,2]
[349760411,1737415839847,-500.0,0.00019452,2]
[349760413,1737415839857,-488.59602379,0.00019452,2]
[349760415,1737415839866,-486.68389218,0.00019452,2]
[349760417,1737415839875,-500.0,0.00019452,2]
[349760419,1737415839886,-798.24,0.00019452,2]
[349760421,1737415839895,-773.38,0.00019452,2]
[349760423,1737415839904,-171.2427429,0.00019452,2]
[349760425,1737415839913,-500.0,0.00019452,2]
[349760427,1737415839924,-500.0,0.00019452,2]
[349760429,1737415839934,-469.83225263,0.00019452,2]
[349760431,1737415839943,-500.0,0.00019452,2]
[349760433,1737415839955,-727.57,0.00019452,2]
[349760435,1737415839965,-500.0,0.00019452,2]
[349760437,1737415839974,-170.94,0.00019463,2]
[349760439,1737415839983,-740.0369452,0.000195,2]
[349760441,1737415839992,-1943.07323485,0.0001961,2]
[349760443,1737415840002,-500.0,0.00019625,2]
[349760445,1737415840011,-221.683935,0.00019725,2]
[349760447,1737415840020,-289.806803,0.00019725,2]
[349760449,1737415840029,-159.291083,0.00019725,2]
[349760451,1737415840039,-500.0,0.00019725,2]
[349760453,1737415840048,-500.0,0.00019725,2]
[349760455,1737415840057,-500.0,0.00019725,2]
[349760457,1737415840066,-500.0,0.00019725,2]
[349760459,1737415840075,-500.27,0.00019725,2]
[349760461,1737415840084,-500.0,0.00019725,2]
[349760463,1737415840093,-500.0,0.00019725,2]
[349760465,1737415840102,-300.15,0.00019725,2]
[349760467,1737415840112,-500.0,0.00019725,2]
[349760469,1737415840121,-500.0,0.00019725,2]
[349760471,1737415840130,-500.0,0.00019725,2]
[349760473,1737415840139,-500.0,0.00019725,2]
[349760475,1737415840148,-609.47,0.00019725,2]
[349760476,1737415840158,-500.0,0.00019725,2]
[349760478,1737415840167,-500.0,0.00019725,2]
[349760480,1737415840176,-500.0,0.00019725,2]
[349760482,1737415840185,-500.0,0.00019725,2]
[349760484,1737415840194,-500.0,0.00019725,2]
[349760486,1737415840203,-500.0,0.00019725,2]
[349760488,1737415840213,-500.0,0.00019725,2]
[349760490,1737415840222,-500.0,0.00019725,2]
[349760492,1737415840231,-500.0,0.00019725,2]
[349760494,1737415840241,-500.0,0.00019725,2]
[349760496,1737415840250,-500.0,0.00019725,2]
[349760498,1737415840259,-500.0,0.00019725,2]
[349760500,1737415840268,-500.0,0.00019725,2]
[349760501,1737415840277,-500.0,0.00019725,2]
[349760502,1737415840286,-500.0,0.00019725,2]
[349760503,1737415840295,-500.0,0.00019725,2]
[349760504,1737415840304,-500.0,0.00019725,2]
[349760505,1737415840313,-500.0,0.00019725,2]
[349760506,1737415840322,-500.0,0.00019725,2]
[349760507,1737415840331,-331.35263455,0.00019725,2]
[349760508,1737415840341,-500.0,0.00019725,2]
[349760509,1737415840350,-500.0,0.00019725,2]
[349760510,1737415840359,-500.0,0.00019725,2]
[349760511,1737415840369,-157.726337,0.00019725,2]
[349760512,1737415840377,-500.0,0.00019725,2]
[349760513,1737415840386,-386.587887,0.00019725,2]
[349760514,1737415840395,-500.0,0.00019725,2]
[349760515,1737415840404,-410.85810347,0.00019725,2]
[349760516,1737415840412,-500.0,0.00019725,2]
[349760517,1737415840421,-506.268726,0.00019725,2]
[349760518,1737415840430,-500.0,0.00019725,2]
[349760519,1737415840439,-156.138685,0.00019725,2]
[349760520,1737415840449,-500.0,0.00019725,2]
[349760522,1737415840458,-500.0,0.00019725,2]
[349760523,1737415840467,-500.0,0.00019725,2]
[349760525,1737415840476,-500.0,0.00019725,2]
[349760527,1737415840485,-255.789158,0.00019725,2]
[349760529,1737415840494,-500.0,0.00019725,2]
[349760531,1737415840502,-500.0,0.00019725,2]
[349760533,1737415840512,-500.0,0.00019725,2]
[349760535,1737415840521,-167.196232,0.00019725,2]
[349760537,1737415840529,-500.0,0.00019725,2]
[349760539,1737415840538,-802.89,0.00019725,2]
[349760541,1737415840547,-500.0,0.00019725,2]
[349760543,1737415840556,-500.0,0.00019725,2]
[349760545,1737415840565,-1379.12,0.00019725,2]
[349760547,1737415840574,-552.54,0.00019725,2]
[349760549,1737415840583,-1355.5,0.00019725,2]
[349760551,1737415840594,-505.96,0.00019725,2]
[349760553,1737415840605,-500.0,0.00019725,2]
[349760555,1737415840614,-500.0,0.00019725,2]
[349760557,1737415840624,-164.435885,0.00019725,2]
[349760559,1737415840633,-668.59,0.00019725,2]
[349760561,1737415840644,-719.6,0.00019725,2]
[349760563,1737415840653,-859.92,0.00019725,2]
[349760565,1737415840662,-500.0,0.00019725,2]
[349760567,1737415840671,-1347.66,0.00019725,2]
[349760569,1737415840680,-545.22,0.00019725,2]
[349760571,1737415840689,-500.0,0.00019725,2]
[349760573,1737415840699,-500.0,0.00019725,2]
[349760575,1737415840708,-500.0,0.00019725,2]
[349760577,1737415840718,-613.36,0.00019725,2]
[349760579,1737415840727,-1503.82,0.00019725,2]
[349760581,1737415840735,-500.0,0.00019725,2]
[349760583,1737415840744,-154.334983,0.00019725,2]
[349760584,1737415840753,-500.0,0.00019725,2]
[349760586,1737415840762,-500.0,0.00019725,2]
[349760588,1737415840771,-500.0,0.00019725,2]
[349760590,1737415840780,-500.0,0.00019725,2]
[349760592,1737415840789,-1440.27,0.00019725,2]
[349760594,1737415840798,-1011.18,0.00019725,2]
[349760596,1737415840807,-159.291084,0.00019725,2]
[349760598,1737415840816,-500.0,0.00019725,2]
[349760600,1737415840825,-500.0,0.00019725,2]
[349760602,1737415840834,-1922.95,0.00019725,2]
[349760604,1737415840847,-1254.51,0.00019725,2]
[349760606,1737415840856,-1024.52,0.00019725,2]
[349760608,1737415840865,-559.54,0.00019725,2]
[349760610,1737415840874,-759.77,0.00019725,2]
[349760612,1737415840883,-532.51,0.00019725,2]
[349760614,1737415840892,-500.0,0.00019725,2]
[349760616,1737415840901,-500.0,0.00019725,2]
[349760618,1737415840910,-500.0,0.00019725,2]
[349760620,1737415840919,-500.0,0.00019725,2]
[349760622,1737415840928,-159.868222,0.00019725,2]
[349760624,1737415840938,-1725.73,0.00019725,2]
[349760626,1737415840947,-1245.27,0.00019725,2]
[349760628,1737415840958,-500.0,0.00019725,2]
[349760629,1737415840966,-627.43,0.00019725,2]
[349760632,1737415840976,-1508.52,0.00019725,2]
[349760633,1737415840986,-500.0,0.00019725,2]
[349760635,1737415840995,-837.75,0.00019725,2]
[349760637,1737415841004,-565.87,0.00019725,2]
[349760639,1737415841013,-500.0,0.00019725,2]
[349760641,1737415841023,-2807.03,0.00019725,2]
[349760643,1737415841032,-217.72107828,0.00019725,2]
[349760645,1737415841040,-151.996575,0.00019725,2]
[349760647,1737415841050,-2511.08,0.00019725,2]
[349760649,1737415841058,-500.0,0.00019725,2]
[349760651,1737415841067,-853.99,0.00019725,2]
[349760653,1737415841077,-1577.0,0.00019725,2]
[349760655,1737415841085,-500.0,0.00019725,2]
[349760657,1737415841094,-500.0,0.00019725,2]
[349760659,1737415841103,-1109.29,0.00019725,2]
[349760660,1737415841112,-500.0,0.00019725,2]
[349760662,1737415841122,-500.0,0.00019725,2]
[349760664,1737415841130,-613.8,0.00019725,2]
[349760666,1737415841139,-500.0,0.00019725,2]
[349760668,1737415841149,-1630.04,0.00019725,2]
[349760670,1737415841158,-3038.99,0.00019725,2]
[349760672,1737415841168,-500.0,0.00019725,2]
[349760674,1737415841177,-500.0,0.00019725,2]
[349760676,1737415841186,-500.0,0.00019725,2]
[349760678,1737415841195,-500.0,0.00019725,2]
[349760680,1737415841209,-1869.75,0.00019725,2]
[349760682,1737415841218,-159.868222,0.00019725,2]
[349760684,1737415841227,-983.77,0.00019725,2]
[349760686,1737415841236,-500.0,0.00019725,2]
[349760688,1737415841245,-716.66,0.00019725,2]
[349760690,1737415841254,-500.0,0.00019725,2]
[349760692,1737415841263,-1094.12,0.00019725,2]
[349760694,1737415841273,-1367.83,0.00019725,2]
[349760696,1737415841282,-500.0,0.00019725,2]
[349760698,1737415841291,-1324.31,0.00019725,2]
[349760700,1737415841301,-500.0,0.00019725,2]
[349760702,1737415841311,-3349.68,0.00019725,2]
[349760704,1737415841320,-2245.39,0.00019725,2]
[349760706,1737415841330,-500.0,0.00019725,2]
[349760708,1737415841339,-500.0,0.00019725,2]
[349760710,1737415841348,-500.0,0.00019725,2]
[349760712,1737415841358,-500.0,0.00019725,2]
[349760714,1737415841367,-167.196232,0.00019725,2]
[349760716,1737415841377,-500.0,0.00019725,2]
[349760718,1737415841386,-2596.27,0.00019725,2]
[349760720,1737415841395,-500.0,0.00019725,2]
[349760722,1737415841404,-500.0,0.00019725,2]
[349760723,1737415841413,-638.32,0.00019725,2]
[349760724,1737415841423,-500.0,0.00019725,2]
[349760725,1737415841432,-500.0,0.00019725,2]
[349760726,1737415841441,-500.0,0.00019725,2]
[349760727,1737415841452,-1469.55,0.00019725,2]
[349760728,1737415841461,-500.0,0.00019725,2]
[349760729,1737415841470,-1000.0,0.00019725,2]
[349760730,1737415841479,-500.0,0.00019725,2]
[349760731,1737415841488,-1346.97,0.00019725,2]
[349760732,1737415841497,-500.0,0.00019725,2]
[349760734,1737415841506,-1547.06,0.00019725,2]
[349760736,1737415841515,-500.0,0.00019725,2]
[349760738,1737415841524,-1244.58,0.00019725,2]
[349760740,1737415841533,-514.55,0.00019725,2]
[349760742,1737415841542,-500.0,0.00019725,2]
[349760744,1737415841551,-641.74,0.00019725,2]
[349760746,1737415841560,-736.66,0.00019725,2]
[349760748,1737415841570,-542.91,0.00019725,2]
[349760750,1737415841579,-159.868222,0.00019725,2]
[349760752,1737415841588,-2859.4,0.00019725,2]
[349760754,1737415841598,-2087.82,0.00019725,2]
[349760755,1737415841607,-1523.19,0.00019725,2]
[349760772,1737415841759,-500.0,0.00019725,2]
[349760775,1737415841770,-2111.99,0.00019725,2]
[349760776,1737415841779,-500.0,0.00019725,2]
[349760778,1737415841788,-237.43690808,0.00019725,2]
[349760779,1737415841798,-500.0,0.00019725,2]
[349760780,1737415841807,-501.26556365,0.00019725,2]
[349760781,1737415841816,-536.22040271,0.00019725,2]
[349760782,1737415841826,-167.196232,0.00019725,2]
[349760783,1737415841835,-500.0,0.00019725,2]
[349760784,1737415841847,-1956.31,0.00019725,2]
[349760785,1737415841857,-1067.99,0.00019725,2]
[349760786,1737415841866,-500.0,0.00019725,2]
[349760787,1737415841875,-187.67060877,0.00019725,2]
[349760788,1737415841884,-159.291083,0.00019725,2]
[349760789,1737415841894,-588.88,0.00019725,2]
[349760790,1737415841903,-159.175838,0.00019725,2]
[349760791,1737415841912,-500.0,0.00019725,2]
[349760792,1737415841922,-529.63784236,0.00019725,2]
[349760793,1737415841931,-640.4,0.00019725,2]
[349760794,1737415841940,-558.77,0.00019725,2]
[349760795,1737415841949,-500.0,0.00019725,2]
[349760796,1737415841958,-500.0,0.00019725,2]
[349760797,1737415841967,-1829.79,0.00019725,2]
[349760798,1737415841976,-500.0,0.00019725,2]
[349760799,1737415841985,-419.76,0.00019726,2]
[349760800,1737415841995,-500.0,0.00019726,2]
[349760801,1737415842004,-500.0,0.00019726,2]
[349760802,1737415842013,-533.4,0.00019726,2]
[349760803,1737415842022,-500.0,0.00019726,2]
[349760804,1737415842032,-500.0,0.00019726,2]
[349760805,1737415842041,-500.0,0.00019726,2]
[349760806,1737415842050,-500.0,0.00019726,2]
[349760807,1737415842060,-500.0,0.00019726,2]
[349760808,1737415842071,-500.0,0.00019726,2]
[349760809,1737415842081,-500.0,0.00019726,2]
[349760810,1737415842090,-500.0,0.00019726,2]
[349760811,1737415842100,-500.0,0.00019726,2]
[349760812,1737415842109,-500.0,0.00019726,2]
[349760813,1737415842118,-500.0,0.00019726,2]
[349760814,1737415842127,-500.0,0.00019726,2]
[349760815,1737415842137,-500.0,0.00019726,2]
[349760816,1737415842146,-500.0,0.00019726,2]
[349760817,1737415842155,-500.0,0.00019726,2]
[349760818,1737415842166,-500.0,0.00019726,2]
[349760819,1737415842175,-500.0,0.00019726,2]
[349760820,1737415842184,-500.0,0.00019726,2]
[349760821,1737415842193,-500.0,0.00019726,2]
[349760822,1737415842203,-500.0,0.00019726,2]
[349760823,1737415842212,-500.0,0.00019726,2]
[349760824,1737415842221,-500.0,0.00019726,2]
[349760825,1737415842230,-500.0,0.00019726,2]
[349760826,1737415842240,-500.0,0.00019726,2]
[349760827,1737415842249,-500.0,0.00019726,2]
[349760828,1737415842258,-500.0,0.00019726,2]
[349760829,1737415842268,-500.0,0.00019726,2]
[349760830,1737415842277,-500.0,0.00019726,2]
[349760831,1737415842286,-500.0,0.00019726,2]
[349760832,1737415842295,-500.0,0.00019726,2]
[349760833,1737415842304,-500.0,0.00019726,2]
[349760834,1737415842313,-1740.72,0.00019726,2]
[349760835,1737415842324,-1026.7,0.00019726,2]
[349760836,1737415842334,-2144.58,0.00019726,2]
[349760837,1737415842343,-946.02,0.00019726,2]
[349760838,1737415842352,-1378.59,0.00019726,2]
[349760839,1737415842362,-677.88,0.00019726,2]
[349760840,1737415842371,-500.0,0.00019726,2]
[349760841,1737415842380,-1376.13,0.00019726,2]
[349760842,1737415842389,-945.16,0.00019726,2]
[349760843,1737415842398,-500.0,0.00019726,2]
[349760844,1737415842407,-2515.77,0.00019726,2]
[349760846,1737415842415,-1223.49,0.00019726,2]
[349760848,1737415842424,-500.0,0.00019726,2]
[349760849,1737415842434,-969.34,0.00019726,2]
[349760850,1737415842443,-500.0,0.00019726,2]
[349760851,1737415842453,-1962.3,0.00019726,2]
[349760852,1737415842462,-500.0,0.00019726,2]
[349760853,1737415842471,-1107.14,0.00019726,2]
[349760854,1737415842480,-529.21,0.00019726,2]
[349760855,1737415842489,-1157.96,0.00019726,2]
[349760856,1737415842499,-500.0,0.00019726,2]
[349760857,1737415842508,-1554.81,0.00019726,2]
[349760858,1737415842517,-500.0,0.00019726,2]
[349760859,1737415842527,-500.0,0.00019726,2]
[349760860,1737415842537,-500.0,0.00019726,2]
[349760861,1737415842547,-3252.33,0.00019726,2]
[349760862,1737415842557,-500.0,0.00019726,2]
[349760863,1737415842566,-500.0,0.00019726,2]
[349760864,1737415842576,-500.0,0.00019726,2]
[349760865,1737415842585,-500.0,0.00019726,2]
[349760866,1737415842595,-500.0,0.00019726,2]
[349760867,1737415842604,-453.70026637,0.00019726,2]
[349760868,1737415842613,-798.24,0.00019726,2]
[349760869,1737415842623,-773.38,0.00019726,2]
[349760870,1737415842632,-577.58543495,0.00019726,2]
[349760871,1737415842641,-500.0,0.00019726,2]
[349760872,1737415842650,-727.57,0.00019726,2]
[349760873,1737415842659,-272.46714465,0.00019728,2]
[349760874,1737415842668,-771.09,0.00019742,30]
[349760875,1737415842677,-425.40302703,0.000198,2]
[349760876,1737415842687,-151.0,0.00019805,2]
[349760877,1737415842696,-16924.86739304,0.000199,7]
[349760878,1737415842707,-500.0,0.00019973,2]
[349760879,1737415842716,-150.0,0.00019999,2]
[349760881,1737415842725,-500.0,0.00019999,2]
[349760883,1737415842734,-500.0,0.00019999,2]
[349760885,1737415842743,-500.0,0.00019999,2]
[349760887,1737415842753,-500.0,0.00019999,2]
[349760889,1737415842762,-517.81490035,0.00019999,2]
[349760891,1737415842771,-221.683935,0.00019999,2]
[349760893,1737415842780,-500.0,0.00019999,2]
[349760894,1737415842789,-289.806803,0.00019999,2]
[349760896,1737415842799,-351.09437313,0.00019999,2]
[349760898,1737415842808,-500.0,0.00019999,2]
[349760899,1737415842818,-500.0,0.00019999,2]
[349760900,1737415842827,-500.0,0.00019999,2]
[349760901,1737415842836,-360.35095664,0.00019999,2]
[349760902,1737415842848,-500.0,0.00019999,2]
[349760903,1737415842857,-500.0,0.00019999,2]
[349760904,1737415842867,-500.0,0.00019999,2]
[349760905,1737415842876,-436.21337758,0.00019999,2]
[349760906,1737415842887,-500.0,0.00019999,2]
[349760907,1737415842897,-500.0,0.00019999,2]
[349760908,1737415842906,-500.0,0.00019999,2]
[349760909,1737415842915,-500.0,0.00019999,2]
[349760910,1737415842925,-159.39353145,0.00019999,2]
[349760911,1737415842934,-500.0,0.00019999,2]
[349760912,1737415842945,-500.0,0.00019999,2]
[349760913,1737415842958,-500.0,0.00019999,2]
[349760914,1737415842967,-500.27,0.00019999,2]
[349760915,1737415842976,-500.0,0.00019999,2]
[349760916,1737415842985,-500.0,0.00019999,2]
[349760917,1737415842995,-266.88908536,0.00019999,2]
[349760918,1737415843004,-500.0,0.00019999,2]
[349760919,1737415843014,-506.99809768,0.00019999,2]
[349760920,1737415843023,-215.04445155,0.00019999,2]
[349760921,1737415843033,-500.0,0.00019999,2]
[349760922,1737415843043,-500.0,0.00019999,2]
[349760923,1737415843053,-500.0,0.00019999,2]
[349760924,1737415843063,-500.0,0.00019999,2]
[349760925,1737415843073,-628.48,0.00019999,2]
[349760926,1737415843082,-500.0,0.00019999,2]
[349760927,1737415843092,-500.0,0.00019999,2]
[349760928,1737415843102,-500.0,0.00019999,2]
[349760929,1737415843111,-581.87275984,0.00019999,2]
[349760930,1737415843121,-500.0,0.00019999,2]
[349760931,1737415843131,-500.0,0.00019999,2]
[349760932,1737415843141,-500.0,0.00019999,2]
[349760933,1737415843150,-500.0,0.00019999,2]
[349760934,1737415843159,-500.0,0.00019999,2]
[349760935,1737415843169,-500.0,0.00019999,2]
[349760936,1737415843178,-500.0,0.00019999,2]
[349760937,1737415843188,-500.0,0.00019999,2]
[349760938,1737415843201,-386.587887,0.00019999,2]
[349760939,1737415843212,-500.0,0.00019999,2]
[349760940,1737415843222,-500.0,0.00019999,2]
[349760941,1737415843231,-506.268726,0.00019999,2]
[349760942,1737415843242,-500.0,0.00019999,2]
[349760943,1737415843251,-500.0,0.00019999,2]
[349760944,1737415843260,-500.0,0.00019999,2]
[349760945,1737415843270,-500.0,0.00019999,2]
[349760946,1737415843279,-500.0,0.00019999,2]
[349760947,1737415843289,-500.0,0.00019999,2]
[349760948,1737415843298,-500.0,0.00019999,2]
[349760949,1737415843308,-500.0,0.00019999,2]
[349760950,1737415843317,-500.0,0.00019999,2]
[349760951,1737415843326,-500.0,0.00019999,2]
[349760952,1737415843335,-802.89,0.00019999,2]
[349760953,1737415843344,-500.0,0.00019999,2]
[349760954,1737415843353,-1379.12,0.00019999,2]
[349760955,1737415843363,-552.54,0.00019999,2]
[349760956,1737415843372,-1355.5,0.00019999,2]
[349760957,1737415843381,-505.96,0.00019999,2]
[349760958,1737415843391,-500.0,0.00019999,2]
[349760959,1737415843400,-500.0,0.00019999,2]
[349760960,1737415843409,-668.59,0.00019999,2]
[349760961,1737415843419,-357.52376095,0.00019999,2]
[349760962,1737415843427,-719.6,0.00019999,2]
[349760963,1737415843436,-859.92,0.00019999,2]
[349760964,1737415843446,-500.0,0.00019999,2]
[349760965,1737415843459,-406.10589291,0.00019999,2]
[349760966,1737415843468,-1347.66,0.00019999,2]
[349760967,1737415843478,-545.22,0.00019999,2]
[349760968,1737415843487,-500.0,0.00019999,2]
[349760969,1737415843496,-500.0,0.00019999,2]
[349760970,1737415843506,-500.0,0.00019999,2]
[349760971,1737415843515,-500.0,0.00019999,2]
[349760972,1737415843524,-613.36,0.00019999,2]
[349760973,1737415843533,-1503.82,0.00019999,2]
[349760974,1737415843542,-500.0,0.00019999,2]
[349760975,1737415843551,-154.334983,0.00019999,2]
[349760976,1737415843560,-500.0,0.00019999,2]
[349760977,1737415843570,-500.0,0.00019999,2]